bitfinex-derivatives/quotes_SOLF0:USTF0_20250206
["timestamp","ask_amount","ask_price","bid_price","bid_amount"]
[1738862877862,0.03605064,191.1,191.07,0.03711296]
[1738862878958,5.26815064,191.1,191.07,0.03711296]
[1738862879165,0.03605064,191.1,191.07,0.03711296]
[1738862881064,5.26835064,191.1,191.07,0.03711296]
[1738862882961,0.03605064,191.1,191.07,0.03711296]
[1738862884164,5.26825064,191.1,191.07,0.03711296]
[1738862884468,0.03605064,191.1,191.07,0.03711296]
[1738862885668,5.2323,191.09,191.07,0.03711296]
[1738862886467,5.2326,191.08,191.07,0.03711296]
[1738862886662,11.82980206,191.09,190.97,11.82980206]
[1738862886971,5.2345,191.02,190.97,5.2354]
[1738862887273,11.82980206,191.03,190.96,7.22232196]
[1738862887965,0.03953514,191.01,190.98,0.03976058]
[1738862888169,5.27433514,191.01,190.98,0.03976058]
[1738862889469,0.03953514,191.01,190.98,0.03976058]
[1738862890066,5.235,190.99,190.98,0.03976058]
[1738862892871,5.2359,190.96,190.88,11.82980206]
[1738862893369,5.2359,190.96,190.91,5.2371]
[1738862893768,5.2363,190.95,190.9,5.2375]
[1738862893973,5.27234702,190.95,190.92,0.03974092]
[1738862894169,0.03604702,190.95,190.92,0.03974092]
[1738862894371,5.2364,190.94,190.92,0.03974092]
[1738862895171,0.03604702,190.95,190.92,0.03974092]
[1738862895564,0.03604702,190.95,190.93,5.2366]
[1738862895766,0.03604702,190.95,190.92,0.03974092]
[1738862896475,0.03604702,190.95,190.92,5.27644092]
[1738862896669,0.03604702,190.95,190.92,0.03974092]
[1738862897174,11.82980206,191.06,190.94,11.82980206]
[1738862897572,5.2341,191.03,190.94,11.82980206]
[1738862898374,0.03327004,191.0,190.99,5.235]
[1738862898573,5.2337,191.04,190.99,5.235]
[1738862898773,0.03393355,191.01,190.99,5.235]
[1738862899772,0.03393355,191.01,191.0,5.2348]
[1738862902972,0.03393355,191.01,190.98,5.2352]
[1738862903577,0.03393355,191.01,191.0,5.2348]
[1738862904571,0.03393355,191.01,190.97,0.03372158]
[1738862904770,5.2353,190.98,190.97,0.03372158]
[1738862904970,0.03393355,191.01,190.97,0.03372158]
[1738862905882,5.26863355,191.01,190.97,0.03372158]
[1738862908785,5.26863355,191.01,190.97,5.26922158]
[1738862909085,0.03393355,191.01,190.97,0.03372158]
[1738862909285,0.03393355,191.01,190.99,5.2349]
[1738862909483,0.03393355,191.01,190.97,0.03372158]
[1738862909983,0.03393355,191.01,191.0,5.2348]
[1738862914087,0.03393355,191.01,190.98,5.2351]
[1738862914489,0.03393355,191.01,190.97,0.03372158]
[1738862915687,0.03393355,191.01,190.97,5.26922158]
[1738862916796,5.26853355,191.01,190.97,5.26922158]
[1738862918394,0.03393355,191.01,190.97,5.26922158]
[1738862918690,0.03393355,191.01,190.97,0.03372158]
[1738862919591,11.82980206,191.0,190.88,11.82980206]
[1738862919795,1.6129,190.99,190.88,11.82980206]
[1738862919992,1.6129,190.99,190.9,5.2375]
[1738862919993,5.2361,190.96,190.9,5.2375]
[1738862920195,5.2361,190.96,190.87,1.6422]
[1738862920595,5.2361,190.96,190.91,5.2372]
[1738862920894,0.03572854,190.93,190.9,0.03374025]
[1738862921298,0.03572854,190.93,190.91,5.2372]
[1738862921698,0.03572854,190.93,190.9,0.03374025]
[1738862922798,0.03572854,190.93,190.92,5.2369]
[1738862925200,1.5704,191.02,190.91,11.82980206]
[1738862925501,1.6032,191.05,190.97,13.31659615]
[1738862925701,1.6032,191.05,191.03,5.2338]
[1738862926203,1.5448,191.08,191.07,5.2328]
[1738862926402,1.556,191.09,191.02,0.03814092]
[1738862926601,1.59238377,191.09,191.02,0.03814092]
[1738862927402,1.59238377,191.09,191.07,5.2326]
[1738862927797,1.59238377,191.09,191.06,0.03499291]
[1738862928002,0.03638377,191.09,191.08,5.2326]
[1738862928798,8.377e-05,191.09,191.08,5.2326]
[1738862929198,4.7104,191.23,191.06,13.35158906]
[1738862929397,4.7104,191.23,191.11,13.31659615]
[1738862930298,7.25943518,191.24,191.14,13.31659615]
[1738862930498,0.03303363,191.19,191.15,0.0369946]
[1738862930797,0.03303363,191.19,191.18,5.2298]
[1738862933106,3.363e-05,191.19,191.18,5.2298]
[1738862933304,1.6783,191.28,191.18,21.26810041]
[1738862933499,25.34810041,191.34,191.18,21.26810041]
[1738862933704,1.5316,191.33,191.18,21.26810041]
[1738862934005,1.5316,191.33,191.21,21.26810041]
[1738862934500,0.03933672,191.29,191.25,0.03862592]
[1738862934703,0.03933672,191.29,191.28,5.2271]
[1738862936205,4.8488,191.38,191.37,5.2246]
[1738862936507,4.8488,191.38,191.27,21.26810041]
[1738862936906,4.8488,191.38,191.25,1.6141]
[1738862937205,1.5316,191.38,191.27,21.26810041]
[1738862937406,1.5316,191.38,191.37,5.2246]
[1738862938001,0.03726535,191.39,191.36,0.03686113]
[1738862938207,3.2282,191.44,191.33,21.26810041]
[1738862938400,0.03726535,191.39,191.36,0.03868655]
[1738862939306,0.03726535,191.39,191.38,5.2244]
[1738862940209,7.25943518,191.45,191.44,5.2227]
[1738862940609,4.8155,191.52,191.42,21.26810041]
[1738862940803,21.26810041,191.58,191.42,21.26810041]
[1738862940999,26.08360041,191.58,191.42,21.26810041]
[1738862941204,26.08360041,191.58,191.5,5.2208]
[1738862941499,30.14360041,191.58,191.48,0.03669811]
[1738862941810,30.14360041,191.58,191.51,5.25943496]
[1738862942704,26.08360041,191.58,191.51,5.25943496]
[1738862943308,26.08360041,191.58,191.51,0.03873496]
[1738862943605,4.8155,191.58,191.51,0.03873496]
[1738862943903,26.08360041,191.58,191.53,5.2202]
[1738862944809,26.08360041,191.58,191.51,0.03873496]
[1738862944810,21.26810041,191.55,191.51,0.03873496]
[1738862945009,21.26810041,191.55,191.5,5.221]
[1738862945310,4.8155,191.58,191.45,21.26810041]
[1738862945507,4.8155,191.58,191.42,21.26810041]
[1738862945707,4.8155,191.58,191.48,21.26810041]
[1738862945905,4.8155,191.58,191.57,5.2192]
[1738862946712,0.03323227,191.59,191.58,5.2189]
[1738862946906,1.5222,191.66,191.51,21.26810041]
[1738862947107,0.0383978,191.6,191.57,0.03529861]
[1738862948506,0.0383978,191.6,191.59,5.2186]
[1738862953816,0.0383978,191.6,191.57,0.03529861]
[1738862954013,0.0383978,191.6,191.58,5.2188]
[1738862954408,0.0383978,191.6,191.57,0.03529861]
[1738862954613,0.0383978,191.6,191.59,5.2186]
[1738862967526,0.0383978,191.6,191.57,0.03529861]
[1738862967720,0.0383978,191.6,191.47,1.5163]
[1738862967925,0.0383978,191.6,191.48,21.26810041]
[1738862968123,21.26810041,191.65,191.59,5.2186]
[1738862968423,21.26810041,191.65,191.51,21.26810041]
[1738862968624,21.26810041,191.62,191.48,21.26810041]
[1738862968825,0.0360465,191.6,191.56,0.04018149]
[1738862970121,0.0360465,191.6,191.59,5.2186]
[1738862970427,4.65e-05,191.6,191.59,5.2186]
[1738862971223,21.26810041,191.77,191.58,1.5201]
[1738862971428,21.26810041,191.77,191.61,21.26810041]
[1738862971826,21.26810041,191.77,191.72,5.215]
[1738862972126,7.25943518,191.78,191.64,21.26810041]
[1738862972321,0.03296173,191.73,191.7,5.2156]
[1738862972517,0.03296173,191.73,191.69,0.03371546]
[1738862972926,0.03296173,191.73,191.72,5.2151]
[1738862974225,0.03296173,191.73,191.71,5.2154]
[1738862979739,0.03296173,191.73,191.72,5.2151]
[1738862985643,0.03296173,191.73,191.71,5.2153]
[1738862987247,0.03296173,191.73,191.69,0.03371546]
[1738862987448,0.03296173,191.73,191.72,5.2151]
[1738862987836,0.03296173,191.73,191.69,0.03371546]
[1738862988344,0.03296173,191.73,191.71,5.2151]
[1738862988542,0.03296173,191.73,191.69,0.03371546]
[1738862989041,0.03296173,191.73,191.71,5.2152]
[1738862989245,0.03296173,191.73,191.69,0.03371546]
[1738862990343,5.2153,191.72,191.69,0.03371546]
[1738862990746,5.2153,191.72,191.68,5.216]
[1738862991946,5.2153,191.72,191.68,5.25567778]
[1738862992447,0.03296173,191.73,191.71,5.2151]
[1738862992945,0.03296173,191.73,191.7,5.2156]
[1738862993745,5.24776173,191.73,191.7,5.2156]
[1738862995747,0.03296173,191.73,191.68,0.03967778]
[1738862996847,5.24786173,191.73,191.7,5.2156]
[1738862997349,5.2154,191.71,191.68,5.25577778]
[1738862997543,5.2154,191.71,191.68,0.03967778]
[1738862997744,21.17038708,191.72,191.68,0.03967778]
[1738862998448,0.03296173,191.73,191.68,0.03967778]
[1738862998647,5.2153,191.72,191.69,5.2159]
[1738862998947,13.26087365,191.73,191.68,0.03967778]
[1738862999451,0.03296173,191.73,191.68,0.03967778]
[1738863001148,5.24786173,191.73,191.69,5.2158]
[1738863001453,5.24786173,191.73,191.68,0.03967778]
[1738863002351,5.24786173,191.73,191.7,5.2155]
[1738863002549,13.26087365,191.73,191.68,0.03967778]
[1738863002846,0.03296173,191.73,191.68,0.03967778]
[1738863003154,20.4873471,191.84,191.72,13.22791192]
[1738863003346,13.22791192,191.84,191.72,13.22791192]
[1738863003652,13.22791192,191.81,191.69,16.47281192]
[1738863004049,13.22791192,191.81,191.73,5.2146]
[1738863004346,0.03803759,191.77,191.73,5.24999342]
[1738863004548,5.25183759,191.77,191.73,5.24999342]
[1738863004948,5.2143,191.75,191.73,0.03539342]
[1738863005147,0.03803759,191.77,191.73,0.03539342]
[1738863005353,21.14915832,191.76,191.73,0.03539342]
[1738863005651,5.2146,191.74,191.73,0.03539342]
[1738863008853,0.03803759,191.77,191.73,0.03539342]
[1738863009050,5.2143,191.75,191.73,0.03539342]
[1738863009852,5.2146,191.74,191.73,0.03539342]
[1738863010256,5.2158,191.7,191.64,1.5689]
[1738863010549,21.14915832,191.76,191.64,1.5689]
[1738863010754,5.2156,191.71,191.67,5.2162]
[1738863011454,0.03589249,191.71,191.68,5.2161]
[1738863011649,0.03589249,191.71,191.67,0.03758804]
[1738863011855,21.14915832,191.7,191.67,0.03758804]
[1738863012048,5.2162,191.68,191.67,0.03758804]
[1738863012252,21.14915832,191.67,191.57,86.18443858]
[1738863012449,5.2181,191.61,191.57,91.40353858]
[1738863012651,5.2181,191.61,191.6,20.50698785]
[1738863012852,21.14915832,191.61,191.58,20.50698785]
[1738863013156,21.14915832,191.61,191.57,57.77857571]
[1738863013352,21.14915832,191.58,191.55,86.18443858]
[1738863013553,21.14915832,191.58,191.57,0.03431064]
[1738863013859,5.2195,191.56,191.55,86.18443858]
[1738863014048,5.2195,191.56,191.55,77.37313858]
[1738863014253,4.06,191.59,191.55,77.37313858]
[1738863015154,0.03789217,191.61,191.55,77.41246719]
[1738863015660,0.03789217,191.61,191.6,5.2184]
[1738863016055,9.217e-05,191.61,191.6,5.2184]
[1738863016456,7.25943518,191.67,191.66,5.2167]
[1738863016955,21.77830555,191.68,191.62,21.14915832]
[1738863017160,21.77830555,191.68,191.67,5.2165]
[1738863017363,48.63568703,191.69,191.65,21.14915832]
[1738863017562,45.41718703,191.69,191.65,21.14915832]
[1738863017863,29.0114037,191.69,191.68,5.2162]
[1738863018662,0.03691667,191.69,191.68,5.2162]
[1738863019261,0.03691667,191.69,191.66,0.0335118]
[1738863019464,0.03691667,191.69,191.67,5.2164]
[1738863019662,0.03691667,191.69,191.66,0.0335118]
[1738863020065,0.03691667,191.69,191.66,5.2500118]
[1738863020264,0.03691667,191.69,191.66,0.0335118]
[1738863021062,0.03691667,191.69,191.67,5.2165]
[1738863021658,0.03691667,191.69,191.68,5.2162]
[1738863023663,3.2093,191.79,191.75,5.2143]
[1738863023962,4.04,191.84,191.71,21.14915832]
[1738863024162,4.04,191.84,191.76,5.2138]
[1738863024363,5.2124,191.82,191.71,21.14915832]
[1738863024758,5.2124,191.82,191.74,5.2145]
[1738863024959,0.03794897,191.78,191.75,0.0395708]
[1738863025572,0.03794897,191.78,191.76,5.214]
[1738863027070,5.25154897,191.78,191.75,0.0395708]
[1738863027263,21.18710729,191.78,191.75,0.0395708]
[1738863027566,22.84080729,191.78,191.75,0.0395708]
[1738863027971,27.01080729,191.78,191.75,0.0395708]
[1738863028667,5.214,191.76,191.75,0.0395708]
[1738863029462,8.37794897,191.78,191.77,5.2137]
[1738863032664,8.37794897,191.78,191.75,0.0395708]
[1738863032970,29.52710729,191.78,191.62,31.58465832]
[1738863033171,5.2145,191.75,191.7,5.2155]
[1738863033768,21.14915832,191.75,191.68,5.216]
[1738863033972,21.14915832,191.75,191.59,21.14915832]
[1738863034266,21.14915832,191.72,191.63,5.2173]
[1738863034462,21.14915832,191.69,191.56,105.08345366]
[1738863034868,5.2161,191.69,191.56,21.14915832]
[1738863035069,1.6718,191.71,191.59,21.14915832]
[1738863035268,4.04,191.77,191.62,21.14915832]
[1738863035564,3.693e-05,191.67,191.65,21.14915832]
[1738863035768,7.81,191.71,191.65,21.14915832]
[1738863035967,7.81,191.71,191.7,5.2156]
[1738863036167,1.6718,191.76,191.65,21.14915832]
[1738863036365,8.34,191.78,191.68,21.14915832]
[1738863036567,8.34,191.78,191.73,5.2148]
[1738863036868,0.03585039,191.75,191.71,21.18237658]
[1738863037266,0.03585039,191.75,191.74,5.2146]
[1738863038167,0.03585039,191.75,191.71,0.03321826]
[1738863038569,0.03585039,191.75,191.72,5.215]
[1738863038966,0.03585039,191.75,191.71,0.03321826]
[1738863039570,5.2146,191.74,191.71,0.03321826]
[1738863039770,0.03585039,191.75,191.71,0.03321826]
[1738863040473,0.03585039,191.75,191.74,5.2145]
[1738863040972,8.34,191.78,191.74,21.14915832]
[1738863041173,8.34,191.78,191.77,5.2137]
[1738863042667,1.114e-05,191.79,191.77,21.14915832]
[1738863042968,1.114e-05,191.79,191.78,5.2135]
[1738863046970,1.114e-05,191.79,191.76,0.03651708]
[1738863047573,1.114e-05,191.79,191.78,5.2135]
[1738863048480,10.4136,192.03,191.79,5.2132]
[1738863048675,4.04,191.96,191.81,21.14915832]
[1738863048874,4.04,191.96,191.84,21.14915832]
[1738863049079,4.04,191.96,191.87,5.2108]
[1738863049278,4.04,191.99,191.84,21.14915832]
[1738863049480,3.2857,191.99,191.87,21.14915832]
[1738863049679,0.03399378,191.91,191.9,5.2102]
[1738863049881,5.2081,191.98,191.88,0.03734452]
[1738863050179,0.03439832,191.92,191.91,0.03297031]
[1738863050578,5.2086,191.96,191.91,0.03297031]
[1738863050781,0.03439832,191.93,191.91,0.03297031]
[1738863051181,5.24389832,191.93,191.91,0.03297031]
[1738863051484,0.03439832,191.93,191.92,5.2097]
[1738863051678,9.832e-05,191.93,191.92,26.35885832]
[1738863052475,9.832e-05,191.93,191.91,0.03297031]
[1738863052782,5.2097,191.92,191.91,0.03297031]
[1738863053278,9.832e-05,191.93,191.83,5.2119]
[1738863053474,5.2105,191.89,191.79,21.14915832]
[1738863053675,1.5554,191.92,191.76,90.29158806]
[1738863053880,1.5554,191.92,191.8,5.2128]
[1738863054078,5.2113,191.87,191.8,5.2128]
[1738863054379,0.03306863,191.88,191.84,0.0399552]
[1738863054881,0.03306863,191.88,191.84,0.03815267]
[1738863055082,0.03306863,191.88,191.86,5.2113]
[1738863055485,0.03306863,191.88,191.86,5.211]
[1738863055688,0.03306863,191.88,191.84,0.03815267]
[1738863056088,0.03306863,191.88,191.87,5.211]
[1738863057491,0.03306863,191.88,191.84,0.03815267]
[1738863058093,0.03306863,191.88,191.84,5.24975267]
[1738863058394,0.03306863,191.88,191.84,0.03815267]
[1738863061495,5.2119,191.84,191.79,5.2131]
[1738863061689,3.188,191.87,191.76,65.10242974]
[1738863062088,5.2113,191.86,191.8,5.2127]
[1738863062288,3.188,191.87,191.77,34.32962014]
[1738863062492,1.5775,191.87,191.77,34.32962014]
[1738863062695,11.72,191.88,191.8,34.36693743]
[1738863062894,0.039426,191.84,191.8,34.36693743]
[1738863063096,0.039426,191.84,191.8,0.03731729]
[1738863063396,0.039426,191.84,191.81,5.2126]
[1738863063596,0.039426,191.84,191.8,0.03731729]
[1738863063799,0.039426,191.84,191.81,5.2126]
[1738863064099,0.039426,191.84,191.8,0.03731729]
[1738863064399,5.2122,191.83,191.8,0.03731729]
[1738863064999,5.251326,191.84,191.8,0.03731729]
[1738863065189,9.609426,191.84,191.8,0.03731729]
[1738863065701,5.2129,191.81,191.76,70.31622974]
[1738863065997,9.609426,191.84,191.71,34.32962014]
[1738863066200,5.2127,191.81,191.76,5.214]
[1738863066598,9.57,191.84,191.76,5.214]
[1738863066793,0.03891907,191.82,191.78,0.036716]
[1738863067190,5.25151907,191.82,191.78,0.036716]
[1738863067597,0.03891907,191.82,191.78,0.036716]
[1738863068398,5.2129,191.81,191.78,0.036716]
[1738863068595,0.03891907,191.82,191.78,0.036716]
[1738863069803,5.2134,191.79,191.68,34.32962014]
[1738863070099,10.05,191.82,191.68,34.32962014]
[1738863070300,5.2127,191.81,191.68,34.32962014]
[1738863070702,5.2127,191.81,191.76,5.2138]
[1738863071103,0.03991112,191.8,191.73,0.04015072]
[1738863071303,0.03991112,191.8,191.78,5.2132]
[1738863072003,0.03991112,191.8,191.77,0.03385837]
[1738863072406,0.03991112,191.8,191.79,5.2132]
[1738863072605,0.03991112,191.8,191.77,0.03385837]
[1738863073104,0.03991112,191.8,191.79,5.2132]
[1738863073308,0.03991112,191.8,191.77,0.03385837]
[1738863074102,0.03991112,191.8,191.79,5.2132]
[1738863076208,10.03991112,191.8,191.77,0.03385837]
[1738863076415,5.2133,191.79,191.77,0.03385837]
[1738863076709,10.03991112,191.8,191.73,5.2148]
[1738863076908,10.03991112,191.8,191.65,0.0694]
[1738863076909,11.67401112,191.8,191.65,21.21476532]
[1738863077105,11.67401112,191.8,191.65,21.14536532]
[1738863077106,12.0741,191.8,191.65,21.14536532]
[1738863077305,21.14536532,191.78,191.69,5.2157]
[1738863077505,1.6579,191.77,191.69,5.2157]
[1738863077701,1.6579,191.77,191.64,20.99947628]
[1738863078112,0.03418595,191.75,191.71,0.03570942]
[1738863078907,0.03418595,191.75,191.64,20.99947628]
[1738863078908,21.14536532,191.72,191.64,15.95887628]
[1738863079108,21.14536532,191.69,191.64,13.43857628]
[1738863079310,5.217,191.65,191.64,13.43857628]
[1738863079501,5.217,191.65,191.64,8.39677628]
[1738863079905,4.04,191.7,191.64,8.39677628]
[1738863080103,0.03839101,191.66,191.64,8.39677628]
[1738863080304,5.217,191.65,191.64,5.87587628]
[1738863080502,5.217,191.65,191.63,56.05011894]
[1738863080503,0.03839101,191.66,191.63,56.05011894]
[1738863080709,21.18375633,191.66,191.63,42.80221894]
[1738863080915,5.2173,191.64,191.63,42.80221894]
[1738863081109,0.03839101,191.66,191.63,0.03938486]
[1738863082112,5.2173,191.64,191.63,0.03938486]
[1738863082308,0.03839101,191.66,191.63,0.03938486]
[1738863083112,5.25519101,191.66,191.63,0.03938486]
[1738863083313,0.03839101,191.66,191.63,0.03938486]
[1738863083613,5.217,191.65,191.63,0.03938486]
[1738863084114,0.03839101,191.66,191.65,5.217]
[1738863085005,0.03839101,191.66,191.63,5.25668486]
[1738863085409,0.03839101,191.66,191.63,0.03938486]
[1738863085610,5.217,191.65,191.63,0.03938486]
[1738863085815,0.03839101,191.66,191.63,0.03938486]
[1738863086215,5.217,191.65,191.63,0.03938486]
[1738863086614,0.03839101,191.66,191.63,0.03938486]
[1738863087213,0.03839101,191.66,191.63,5.25668486]
[1738863087411,0.03839101,191.66,191.63,0.03938486]
[1738863087629,21.18375633,191.66,191.63,0.03938486]
[1738863087916,5.2173,191.64,191.63,0.03938486]
[1738863088318,21.18375633,191.66,191.55,5.2197]
[1738863088622,21.14536532,191.63,191.54,1.6078]
[1738863088812,21.14536532,191.6,191.51,5.2208]
[1738863089125,32.10536532,191.6,191.45,4.8212]
[1738863089324,5.22,191.55,191.45,4.8212]
[1738863089618,0.03589458,191.54,191.51,0.03624062]
[1738863091523,0.03589458,191.54,191.51,5.25704062]
[1738863091724,0.03589458,191.54,191.51,0.03624062]
[1738863093218,4.20589458,191.54,191.51,0.03624062]
[1738863093418,9.42589458,191.54,191.51,0.03624062]
[1738863093620,4.20589458,191.54,191.51,0.03624062]
[1738863093914,5.2205,191.52,191.51,0.03624062]
[1738863094113,25.3512599,191.54,191.45,8.5146]
[1738863094323,25.3512599,191.54,191.45,1.6662]
[1738863095024,4.20589458,191.54,191.45,1.6662]
[1738863095219,4.20589458,191.54,191.48,0.03533936]
[1738863096326,4.65589458,191.54,191.48,0.03533936]
[1738863096827,21.14536532,191.53,191.48,0.03533936]
[1738863097118,4.65589458,191.54,191.48,0.03533936]
[1738863097515,5.2208,191.52,191.48,0.03533936]
[1738863097921,5.2209,191.51,191.48,0.03533936]
[1738863098419,11.5909,191.51,191.48,0.03533936]
[1738863098823,6.37,191.51,191.48,5.25693936]
[1738863099219,6.37,191.51,191.48,0.03533936]
[1738863099424,6.37,191.51,191.49,5.2214]
[1738863099821,6.37,191.51,191.48,0.03533936]
[1738863100024,6.37,191.51,191.49,5.2211]
[1738863100225,6.37,191.51,191.48,0.03533936]
[1738863100430,14.19,191.51,191.48,0.03533936]
[1738863100622,14.19,191.51,191.5,5.2211]
[1738863100924,14.19,191.51,191.48,0.03533936]
[1738863101921,19.4109,191.51,191.48,0.03533936]
[1738863103024,14.19,191.51,191.48,0.03533936]
[1738863103725,14.19,191.51,191.5,5.2211]
[1738863104430,4.65589458,191.54,191.53,5.2203]
[1738863105420,21.14536532,191.71,191.6,5.2183]
[1738863105624,7.54,191.62,191.55,21.14536532]
[1738863106227,7.54,191.62,191.57,5.2192]
[1738863106422,7.54,191.62,191.55,21.14536532]
[1738863106629,0.03462392,191.61,191.58,0.03938396]
[1738863108224,1.68262392,191.62,191.61,5.2181]
[1738863108430,8.29,191.67,191.58,21.18474928]
[1738863109630,0.03537081,191.64,191.58,0.03938396]
[1738863110230,0.03537081,191.64,191.59,5.2185]
[1738863110431,0.03537081,191.64,191.58,0.03938396]
[1738863110730,0.03537081,191.64,191.63,5.2175]
[1738863112626,1.07,191.67,191.62,21.14536532]
[1738863112834,9.68,191.71,191.7,5.2156]
[1738863113133,4.57343828,191.71,191.7,5.2156]
[1738863113523,7.21785737,191.77,191.75,5.2143]
[1738863113727,7.21785737,191.77,191.68,21.14536532]
[1738863113928,7.21785737,191.77,191.74,0.03977378]
[1738863114633,0.03900743,191.78,191.74,0.03977378]
[1738863115024,0.03900743,191.78,191.77,5.2137]
[1738863116032,0.03900743,191.78,191.74,0.03977378]
[1738863117330,0.03900743,191.78,191.77,5.2137]
[1738863119034,9.57,191.84,191.83,5.2121]
[1738863120329,9.57,191.84,191.82,0.03995767]
[1738863120529,9.57,191.84,191.82,5.25225767]
[1738863120928,9.57,191.84,191.82,0.03995767]
[1738863121136,9.57,191.84,191.71,21.14536532]
[1738863121337,9.57,191.84,191.69,0.0976]
[1738863121635,21.14536532,191.83,191.69,0.0976]
[1738863121829,21.14536532,191.83,191.68,21.14536532]
[1738863122028,5.2125,191.82,191.68,21.14536532]
[1738863122226,9.57,191.84,191.68,21.14536532]
[1738863122434,0.03431867,191.77,191.73,0.03797471]
[1738863122636,5.2145,191.75,191.73,0.03797471]
[1738863122831,0.03431867,191.77,191.73,0.03797471]
[1738863124237,9.51431867,191.77,191.73,0.03797471]
[1738863124639,5.2142,191.76,191.73,0.03797471]
[1738863124839,5.2142,191.76,191.59,0.1622]
[1738863124840,1.6503,191.76,191.59,0.1622]
[1738863125039,3.2922,191.76,191.59,0.1622]
[1738863125233,3.2922,191.76,191.59,21.30756532]
[1738863125435,21.14536532,191.74,191.59,21.14536532]
[1738863125628,5.2166,191.67,191.58,5.2187]
[1738863125833,1.6503,191.66,191.58,5.2187]
[1738863126027,0.04014634,191.64,191.61,0.03697344]
[1738863126627,0.04014634,191.64,191.5,21.28136532]
[1738863126841,25.18536532,191.65,191.47,21.14536532]
[1738863127028,21.14536532,191.62,191.47,21.14536532]
[1738863127534,21.14536532,191.62,191.49,5.2214]
[1738863127535,5.2195,191.56,191.49,5.2214]
[1738863127731,21.14536532,191.59,191.41,0.2982]
[1738863127932,0.03995673,191.54,191.51,0.03978587]
[1738863128134,0.03995673,191.54,191.44,5.2225]
[1738863128333,1.5994,191.55,191.44,5.2225]
[1738863128533,1.5994,191.55,191.41,21.14536532]
[1738863128741,1.5994,191.55,191.42,34.45512614]
[1738863129138,5.2203,191.53,191.45,5.2224]
[1738863129438,0.03336618,191.5,191.47,0.03434348]
[1738863132742,5.2216,191.48,191.36,34.83692614]
[1738863132940,11.94,191.53,191.36,34.83692614]
[1738863133142,11.94,191.53,191.39,34.45512614]
[1738863133343,11.94,191.53,191.45,34.45512614]
[1738863133938,0.03922934,191.51,191.49,5.2211]
[1738863134241,0.03922934,191.51,191.47,0.03844062]
[1738863135144,0.03922934,191.51,191.5,5.2211]
[1738863135646,0.03922934,191.51,191.48,5.2216]
[1738863135842,0.03922934,191.51,191.47,0.03844062]
[1738863136347,0.03922934,191.51,191.5,5.2211]
[1738863136542,0.03922934,191.51,191.47,0.03844062]
[1738863137748,0.03922934,191.51,191.48,5.2216]
[1738863137947,0.03922934,191.51,191.47,0.03844062]
[1738863138545,0.03922934,191.51,191.5,5.2211]
[1738863139650,2.934e-05,191.51,191.5,5.2211]
[1738863141351,2.934e-05,191.51,191.49,5.2213]
[1738863141646,2.934e-05,191.51,191.47,0.03844062]
[1738863141850,5.22082934,191.51,191.47,0.03844062]
[1738863142440,2.934e-05,191.51,191.47,0.03844062]
[1738863142646,5.2215,191.49,191.47,0.03844062]
[1738863142851,7.46002934,191.51,191.39,34.45512614]
[1738863143046,5.2212,191.5,191.39,34.45512614]
[1738863143352,5.2212,191.5,191.36,0.2159]
[1738863143353,7.46,191.51,191.42,34.45512614]
[1738863143751,7.46,191.51,191.39,34.45512614]
[1738863143941,0.03546796,191.48,191.45,0.03475878]
[1738863144251,5.2221,191.47,191.36,34.45512614]
[1738863144455,0.03546796,191.48,191.36,34.45512614]
[1738863144652,7.46,191.51,191.39,5.2239]
[1738863144852,7.46,191.51,191.36,34.45512614]
[1738863145150,34.45512614,191.49,191.34,72.38018124]
[1738863145450,5.2227,191.44,191.42,0.03922338]
[1738863145655,0.03555903,191.45,191.42,0.03922338]
[1738863146557,0.03555903,191.45,191.34,72.38018124]
[1738863146953,34.45512614,191.43,191.34,72.38018124]
[1738863147149,1.6648,191.42,191.34,72.38018124]
[1738863147549,5.2241,191.4,191.34,77.60538124]
[1738863147749,0.03490116,191.4,191.36,0.03469021]
[1738863148456,5.2242,191.39,191.36,0.03469021]
[1738863148655,0.03490116,191.4,191.36,0.03469021]
[1738863149460,0.03490116,191.4,191.36,5.25959021]
[1738863150450,7.50490116,191.4,191.36,0.03469021]
[1738863150658,12.72900116,191.4,191.36,0.03469021]
[1738863151257,7.50490116,191.4,191.39,5.2241]
[1738863152459,7.50490116,191.4,191.36,0.03469021]
[1738863153059,17.31490116,191.4,191.36,0.03469021]
[1738863153564,17.31490116,191.4,191.39,5.2241]
[1738863154566,17.31490116,191.4,191.38,5.2243]
[1738863154764,17.31490116,191.4,191.37,21.23131918]